bitfinex-derivatives/quotes_BTCF0:USTF0_20250823
["timestamp","ask_amount","ask_price","bid_price","bid_amount"]
[1755922699620,0.66813184,115760.0,115750.0,0.46207]
[1755922699827,1.07757543,115760.0,115750.0,0.46207]
[1755922700231,1.07757543,115760.0,115750.0,0.30538]
[1755922700837,1.07757543,115760.0,115750.0,0.46207]
[1755922703137,0.286409,115750.0,115740.0,0.46207]
[1755922703330,1.86525259,115750.0,115740.0,0.46207]
[1755922703530,1.86525259,115750.0,115740.0,0.71207]
[1755922704736,1.455809,115750.0,115740.0,0.71207]
[1755922704938,1.86525259,115750.0,115740.0,0.71207]
[1755922705843,1.86525259,115750.0,115740.0,0.46207]
[1755922707238,1.86525259,115750.0,115740.0,0.37425]
[1755922707439,1.86525259,115750.0,115740.0,0.45407]
[1755922708742,1.86625259,115750.0,115740.0,0.45407]
[1755922709344,1.86725259,115750.0,115740.0,0.45407]
[1755922709533,1.457809,115750.0,115740.0,0.45407]
[1755922709844,1.86725259,115750.0,115740.0,0.45407]
[1755922712329,1.50645259,115750.0,115740.0,0.45407]
[1755922713138,1.86725259,115750.0,115740.0,0.45407]
[1755922716442,1.86725259,115750.0,115740.0,0.56266125]
[1755922716645,1.097009,115750.0,115740.0,0.56266125]
[1755922716844,1.50645259,115750.0,115740.0,0.56266125]
[1755922718845,1.86725259,115750.0,115740.0,0.56266125]
[1755922720349,1.82652732,115750.0,115740.0,0.56266125]
[1755922722339,2.19524564,115750.0,115740.0,0.56266125]
[1755922722639,1.83444564,115750.0,115740.0,0.56266125]
[1755922722841,2.19524564,115750.0,115740.0,0.56266125]
[1755922723242,1.82652732,115750.0,115740.0,0.56266125]
[1755922723839,1.457809,115750.0,115740.0,0.56266125]
[1755922724050,1.82652732,115750.0,115740.0,0.56266125]
[1755922725046,1.46572732,115750.0,115740.0,0.56266125]
[1755922725242,1.82652732,115750.0,115740.0,0.56266125]
[1755922725547,1.82652732,115750.0,115740.0,0.45407]
[1755922728441,1.46572732,115750.0,115740.0,0.45407]
[1755922728635,1.82652732,115750.0,115740.0,0.45407]
[1755922730251,1.82652732,115750.0,115740.0,0.56266125]
[1755922730641,1.82652732,115750.0,115740.0,0.48284125]
[1755922730843,2.19524564,115750.0,115740.0,0.41397125]
[1755922731048,2.19524564,115750.0,115740.0,0.10859125]
[1755922732148,2.44524564,115750.0,115740.0,0.10859125]
[1755922732353,0.2741763,115740.0,115730.0,0.32595125]
[1755922732554,1.37241294,115740.0,115730.0,0.32595125]
[1755922732755,1.37241294,115740.0,115730.0,0.21736]
[1755922733256,1.37241294,115740.0,115730.0,0.3261521]
[1755922733754,1.37241294,115740.0,115730.0,0.8261521]
[1755922733951,1.37241294,115740.0,115730.0,0.6553321]
[1755922734151,1.62241294,115740.0,115730.0,0.5]
[1755922735155,1.64139975,115740.0,115730.0,0.5]
[1755922735853,0.1638238,115730.0,115720.0,0.5553421]
[1755922736153,1.80998212,115730.0,115720.0,0.5553421]
[1755922736356,1.85108413,115730.0,115720.0,0.5553421]
[1755922736762,1.93109413,115730.0,115720.0,0.5553421]
[1755922737057,1.95157279,115730.0,115720.0,1.0563421]
[1755922738252,1.95157279,115730.0,115720.0,1.0583421]
[1755922741056,1.95157279,115730.0,115720.0,0.94955]
[1755922743665,1.54175246,115730.0,115720.0,0.94955]
[1755922743960,1.95157279,115730.0,115720.0,0.94955]
[1755922744864,1.54175246,115730.0,115720.0,0.94955]
[1755922745262,1.95157279,115730.0,115720.0,0.94955]
[1755922752675,1.95157279,115730.0,115720.0,0.44955]
[1755922755166,1.95157279,115730.0,115720.0,0.36973]
[1755922755478,1.95157279,115730.0,115720.0,0.4785221]
[1755922755776,1.95157279,115730.0,115720.0,0.5564921]
[1755922756380,1.91062487,115730.0,115720.0,0.5564921]
[1755922766383,1.91062487,115730.0,115720.0,0.4785221]
[1755922766584,1.91062487,115730.0,115720.0,0.3291521]
[1755922771193,1.91062487,115730.0,115720.0,0.5598921]
[1755922771591,1.91062487,115730.0,115720.0,0.4067421]
[1755922773192,1.91062487,115730.0,115720.0,0.5598921]
[1755922775805,1.91062487,115730.0,115720.0,0.4780421]
[1755922776906,1.83061487,115730.0,115720.0,0.4780421]
[1755922779103,1.83061487,115730.0,115720.0,0.49090079]
[1755922779903,1.83061487,115730.0,115720.0,0.4780421]
[1755922780104,1.83061487,115730.0,115720.0,0.36925]
[1755922780904,1.83061487,115730.0,115720.0,0.4511]
[1755922781304,1.83061487,115730.0,115720.0,0.5598921]
[1755922782007,1.83061487,115730.0,115720.0,0.4511]
[1755922782506,1.83061487,115730.0,115720.0,0.36925]
[1755922783411,1.83061487,115730.0,115720.0,0.11915]
[1755922783609,0.0864508,115720.0,115710.0,0.4739421]
[1755922783807,1.36593562,115720.0,115710.0,0.5515321]
[1755922785014,1.36593562,115720.0,115710.0,0.5545321]
[1755922786215,1.36593562,115720.0,115710.0,0.5565321]
[1755922788115,1.44342562,115720.0,115710.0,0.3565321]
[1755922790015,1.44342562,115720.0,115710.0,0.4278321]
[1755922793412,1.44342562,115720.0,115710.0,0.005]
[1755922795418,1.44342562,115720.0,115710.0,0.11621]
[1755922797221,1.44342562,115720.0,115710.0,0.22502768]
[1755922797919,1.44342562,115720.0,115710.0,0.27875768]
[1755922798218,1.44342562,115720.0,115710.0,0.32581768]
[1755922799723,1.46286631,115720.0,115710.0,0.11621]
[1755922800718,1.46286631,115720.0,115710.0,0.21943]
[1755922801016,1.46286631,115720.0,115710.0,0.17219]
[1755922801321,1.46286631,115720.0,115710.0,0.005]
[1755922806027,1.14366312,115710.0,115700.0,0.28054768]
[1755922806326,2.30422312,115710.0,115700.0,0.17173]
[1755922806522,2.30422312,115710.0,115700.0,0.21897]
[1755922807020,0.4059257,115700.0,115690.0,0.32787106]
[1755922807227,1.13559811,115700.0,115690.0,0.32787106]
[1755922807428,1.13559811,115700.0,115690.0,0.29801338]
[1755922807825,1.13559811,115700.0,115690.0,0.44313338]
[1755922807826,1.13359811,115700.0,115690.0,0.44313338]
[1755922808028,1.15314433,115700.0,115690.0,0.44313338]
[1755922808328,1.15114433,115700.0,115690.0,0.44313338]
[1755922808528,1.15314433,115700.0,115690.0,0.44313338]
[1755922808923,1.22286273,115700.0,115690.0,0.44313338]
[1755922809126,0.48197032,115700.0,115690.0,0.44313338]
[1755922809322,0.39476032,115700.0,115690.0,0.44313338]
[1755922809522,0.76363273,115700.0,115690.0,0.44313338]
[1755922809729,0.76363273,115700.0,115690.0,0.55195106]
[1755922810225,0.76363273,115700.0,115690.0,0.56502061]
[1755922810432,1.12443273,115700.0,115690.0,0.56502061]
[1755922811129,1.22386273,115700.0,115690.0,0.29370061]
[1755922811329,1.22386273,115700.0,115690.0,0.45620242]
[1755922814334,1.22386273,115700.0,115690.0,0.44313338]
[1755922814632,1.22386273,115700.0,115690.0,0.45619974]
[1755922814838,1.22386273,115700.0,115690.0,0.45619907]
[1755922818242,0.7237941,115700.0,115690.0,0.45619907]
[1755922818452,1.20431651,115700.0,115690.0,0.45619907]
[1755922820252,0.04935,115700.0,115690.0,1.07507148]
[1755922820454,0.37187241,115700.0,115690.0,1.16150563]
[1755922820653,0.45833821,115700.0,115690.0,1.16150563]
[1755922821054,0.45833821,115700.0,115690.0,1.63112331]
[1755922821556,0.45833821,115700.0,115690.0,2.02230563]
[1755922822058,0.0894658,115700.0,115690.0,2.02230563]
[1755922822245,0.0894658,115700.0,115690.0,1.65343322]
[1755922823660,0.0894658,115700.0,115690.0,1.65378173]
[1755922824957,0.49935696,115700.0,115690.0,1.65378173]
[1755922825461,0.49935696,115700.0,115690.0,1.7625317]
[1755922826360,0.0894658,115700.0,115690.0,1.7625317]
[1755922826658,0.49935696,115700.0,115690.0,1.7625317]
[1755922828559,0.49935696,115700.0,115690.0,1.65378173]
[1755922828560,0.0894658,115700.0,115690.0,1.65378173]
[1755922828762,0.49935696,115700.0,115690.0,1.65378173]
[1755922829759,0.0894658,115700.0,115690.0,1.65378173]
[1755922829960,0.0894658,115700.0,115690.0,1.40378173]
[1755922830254,0.0894658,115700.0,115690.0,1.51256458]
[1755922831247,0.9662524,115710.0,115690.0,3.06080894]
[1755922831453,0.9662524,115710.0,115700.0,0.43474]
[1755922831655,0.9662524,115710.0,115700.0,0.4481542]
[1755922831964,0.9662524,115710.0,115700.0,0.8089542]
[1755922832155,0.9662524,115710.0,115700.0,0.89538462]
[1755922832660,0.9712524,115710.0,115700.0,0.8951889]
[1755922833060,0.9722524,115710.0,115700.0,0.8951889]
[1755922833260,0.1724924,115710.0,115700.0,1.3951889]
[1755922834365,0.1714924,115710.0,115700.0,1.3951889]
[1755922834764,0.1684924,115710.0,115700.0,1.3951889]
[1755922835560,0.1684924,115710.0,115700.0,1.38197042]
[1755922835865,0.1684924,115710.0,115700.0,1.39518189]
[1755922836163,0.08203,115710.0,115700.0,1.59030983]
[1755922837668,0.0864558,115720.0,115700.0,2.25020099]
[1755922837968,0.0864558,115720.0,115710.0,0.79554]
[1755922838168,0.0864558,115720.0,115710.0,0.80875147]
[1755922838564,0.0864558,115720.0,115710.0,0.89517815]
[1755922839363,0.0874558,115720.0,115710.0,0.89517815]
[1755922839761,0.0884558,115720.0,115710.0,0.89517815]
[1755922841169,0.1385458,115720.0,115710.0,0.89517815]
[1755922841370,0.1395458,115720.0,115710.0,0.89517815]
[1755922841570,0.1395458,115720.0,115710.0,0.88196668]
[1755922841765,0.2632158,115720.0,115710.0,0.8951705]
[1755922843171,0.54304696,115720.0,115710.0,1.00383274]
[1755922843371,0.0884558,115720.0,115710.0,0.8951705]
[1755922844374,0.4572686,115720.0,115710.0,0.8951705]
[1755922844777,0.5083586,115720.0,115710.0,0.8951705]
[1755922846171,0.5873286,115720.0,115710.0,0.8951705]
[1755922846474,0.6320286,115720.0,115710.0,0.8951705]
[1755922846965,0.6917486,115720.0,115710.0,0.8951705]
[1755922847164,0.3946858,115720.0,115710.0,1.00383274]
[1755922847366,0.7634986,115720.0,115710.0,1.00383274]
[1755922848874,0.3946858,115720.0,115710.0,1.00383274]
[1755922849373,0.7634986,115720.0,115710.0,1.00383274]
[1755922850177,0.6845286,115720.0,115710.0,1.00383274]
[1755922850680,0.3157158,115720.0,115710.0,1.00383274]
[1755922850868,0.6845286,115720.0,115710.0,1.37264554]
[1755922851064,0.002,115720.0,115710.0,2.25979564]
[1755922851673,0.3708128,115720.0,115710.0,2.25979234]
[1755922851971,0.3708128,115720.0,115710.0,2.75979234]
[1755922852472,0.002,115720.0,115710.0,3.00979234]
[1755922852772,0.0884507,115720.0,115710.0,2.9011301]
[1755922853074,0.4562635,115720.0,115710.0,2.8146718]
[1755922853266,0.5073535,115720.0,115710.0,2.8154318]
[1755922853776,0.5063535,115720.0,115710.0,2.8154318]
[1755922853965,0.5853235,115720.0,115710.0,2.8154318]
[1755922854473,0.5063535,115720.0,115710.0,2.8154318]
[1755922855275,0.5063535,115720.0,115710.0,2.0139518]
[1755922855575,0.0864507,115720.0,115710.0,2.0139518]
[1755922855777,0.4552635,115720.0,115710.0,2.0139518]
[1755922859076,0.4552635,115720.0,115710.0,1.7639518]
[1755922859268,0.4552635,115720.0,115710.0,1.9188912]
[1755922859976,0.4552635,115720.0,115710.0,1.90571888]
[1755922860176,0.4552635,115720.0,115710.0,1.91889256]
[1755922860776,0.4552635,115720.0,115710.0,1.90571888]
[1755922860975,0.5054335,115720.0,115710.0,1.91889508]
[1755922861377,0.5798235,115720.0,115710.0,1.91889508]
[1755922861576,0.5054335,115720.0,115710.0,1.91889508]
[1755922861880,0.7524235,115720.0,115710.0,1.91889508]
[1755922862179,0.7524235,115720.0,115710.0,1.55008228]
[1755922862373,0.7524235,115720.0,115710.0,1.91889508]
[1755922862872,0.7524235,115720.0,115710.0,1.55008228]
[1755922863078,0.8445035,115720.0,115710.0,1.55008228]
[1755922863282,0.8445035,115720.0,115710.0,1.39514288]
[1755922864178,1.0945035,115720.0,115710.0,1.39514288]
[1755922864979,1.8955035,115720.0,115710.0,1.39514288]
[1755922865279,1.8955035,115720.0,115710.0,1.39475946]
[1755922867979,1.5266907,115720.0,115710.0,1.39475946]
[1755922868171,1.8955035,115720.0,115710.0,1.39476108]
[1755922868990,1.8955035,115720.0,115710.0,1.03396232]
[1755922869884,1.8955035,115720.0,115710.0,1.03396289]
[1755922870388,1.93655001,115720.0,115710.0,1.03396289]
[1755922873082,1.93755001,115720.0,115710.0,1.03396289]
[1755922873388,1.93755001,115720.0,115710.0,1.03049289]
[1755922873784,1.93755001,115720.0,115710.0,0.95552289]
[1755922874181,1.93755001,115720.0,115710.0,0.94272668]
[1755922874486,1.93855001,115720.0,115710.0,0.95552573]
[1755922874792,1.93855001,115720.0,115710.0,1.06430365]
[1755922875478,1.93855001,115720.0,115710.0,1.0515046]
[1755922875890,1.93855001,115720.0,115710.0,1.1264746]
[1755922876386,1.93855001,115720.0,115710.0,1.01769668]
[1755922876587,1.93855001,115720.0,115710.0,1.12647548]
[1755922888103,1.68855001,115720.0,115710.0,1.05150548]
[1755922888285,1.93855001,115720.0,115710.0,0.9650788]
[1755922888492,2.29935001,115720.0,115710.0,0.7694988]
[1755922889996,2.04935001,115720.0,115710.0,0.7694988]
[1755922890298,2.37735872,115720.0,115710.0,0.7694988]
[1755922890496,2.37735872,115720.0,115710.0,0.8206988]
[1755922893598,2.37735872,115720.0,115710.0,1.0359588]
[1755922894000,1.64762471,115720.0,115710.0,1.0359588]
[1755922894493,2.00842471,115720.0,115710.0,1.0359588]
[1755922895499,1.64762471,115720.0,115710.0,1.0359588]
[1755922895900,1.64762471,115720.0,115710.0,0.92718]
[1755922896298,2.00842471,115720.0,115710.0,0.92718]
[1755922896498,2.37735872,115720.0,115710.0,0.92718]
[1755922897500,2.37735872,115720.0,115710.0,0.84951]
[1755922898191,2.37735872,115720.0,115710.0,0.92718]
[1755922898397,2.37735872,115720.0,115710.0,0.42718]
[1755922898595,2.37735872,115720.0,115710.0,0.34951]
[1755922899701,2.37735872,115720.0,115710.0,0.11626]
[1755922900202,2.37735872,115720.0,115710.0,0.16746]
[1755922900402,2.37735872,115720.0,115710.0,0.20885]
[1755922900796,2.37735872,115720.0,115710.0,0.36159]
[1755922900998,2.37735872,115720.0,115710.0,0.42411]
[1755922901201,2.37735872,115720.0,115710.0,0.34644]
[1755922901410,2.37735872,115720.0,115710.0,0.42411]
[1755922904117,2.37735872,115720.0,115710.0,0.28392]
[1755922904714,2.45737872,115720.0,115710.0,0.20885]
[1755922905425,2.45737872,115720.0,115710.0,0.22176463]
[1755922909525,2.09657872,115720.0,115710.0,0.22176463]
[1755922909724,2.45737872,115720.0,115710.0,0.22176463]
[1755922910326,2.45737872,115720.0,115710.0,0.37450463]
[1755922910624,2.45737872,115720.0,115710.0,0.43702463]
[1755922910826,2.45737872,115720.0,115710.0,0.29683463]
[1755922912627,2.45737872,115720.0,115710.0,0.43702463]
[1755922914026,2.45737872,115720.0,115710.0,0.42411]
[1755922914227,2.45737872,115720.0,115710.0,0.4370232]
[1755922915027,2.45737872,115720.0,115710.0,0.43702355]
[1755922919027,2.45737872,115720.0,115710.0,0.43623355]
[1755922920535,2.45737872,115720.0,115710.0,0.17056355]
[1755922922132,2.45737872,115720.0,115710.0,0.15765]
[1755922922333,2.45737872,115720.0,115710.0,0.17056902]
[1755922922733,1.7195107,115720.0,115710.0,0.17725873]
[1755922922932,2.45737872,115720.0,115710.0,0.17725873]
[1755922924037,2.45737872,115720.0,115710.0,0.12917873]
[1755922924833,2.45737872,115720.0,115710.0,0.01291873]
[1755922925234,2.45737872,115720.0,115710.0,0.12531839]
[1755922926838,2.45737872,115720.0,115710.0,0.17339839]
[1755922927029,2.45737872,115720.0,115710.0,0.21815839]
[1755922931244,2.45737872,115720.0,115710.0,0.20524]
[1755922931437,2.45737872,115720.0,115710.0,0.21816139]
[1755922931749,2.45737872,115720.0,115710.0,0.35492139]
[1755922932043,2.45737872,115720.0,115710.0,0.43180138]
[1755922934448,2.45737872,115720.0,115710.0,0.43180244]
[1755922935548,2.45737872,115720.0,115710.0,0.41888]
[1755922935744,2.45737872,115720.0,115710.0,0.342]
[1755922936051,2.45737872,115720.0,115710.0,0.1124]
[1755922936547,2.45737872,115720.0,115710.0,0.12515792]
[1755922940346,2.45737872,115720.0,115710.0,0.23393672]
[1755922941145,2.45737872,115720.0,115710.0,0.12515792]
[1755922941452,2.45737872,115720.0,115710.0,0.12515786]
[1755922942052,2.45737872,115720.0,115710.0,0.12515785]
[1755922945967,2.45737872,115720.0,115710.0,0.21799785]
[1755922946565,2.45737872,115720.0,115710.0,0.16991785]
[1755922946868,2.45737872,115720.0,115710.0,0.12515785]
[1755922948472,2.45737872,115720.0,115710.0,0.17323785]
[1755922950474,2.45737872,115720.0,115710.0,0.16048]
[1755922950671,2.45737872,115720.0,115710.0,0.1732386]
[1755922951072,2.45737872,115720.0,115710.0,0.1251586]
[1755922953378,1.7195107,115720.0,115710.0,0.2127186]
[1755922953577,2.45737872,115720.0,115710.0,0.3552685]
[1755922953877,2.45737872,115720.0,115710.0,0.4160085]
[1755922955378,2.45737872,115720.0,115710.0,0.40325]
[1755922955581,2.45737872,115720.0,115710.0,0.41600834]
[1755922959686,2.45737872,115720.0,115710.0,0.41600746]
[1755922964882,2.45737872,115720.0,115710.0,0.29848746]
[1755922965088,2.45737872,115720.0,115710.0,0.21271746]
[1755922968687,2.45737872,115720.0,115710.0,0.19996]
[1755922968887,2.45737872,115720.0,115710.0,0.21277623]
[1755922969890,2.45737872,115720.0,115710.0,0.28356623]
[1755922971596,2.45737872,115720.0,115710.0,0.41606623]
[1755922971788,2.45737872,115720.0,115710.0,0.34527623]
[1755922972591,2.45737872,115720.0,115710.0,0.12521623]
[1755922973186,2.45737872,115720.0,115710.0,0.21277623]
[1755922974186,2.45737872,115720.0,115710.0,0.16604623]
[1755922974390,2.45737872,115720.0,115710.0,0.12521623]
[1755922975394,2.45737872,115720.0,115710.0,0.17194623]
[1755922975595,2.45737872,115720.0,115710.0,0.12521623]
[1755922977897,2.45737872,115720.0,115710.0,0.1124]
[1755922978098,2.45737872,115720.0,115710.0,0.1252161]
[1755922978794,2.45737872,115720.0,115710.0,0.1747161]
[1755922978995,2.45737872,115720.0,115710.0,0.1252161]
[1755922979195,2.45737872,115720.0,115710.0,0.0128161]
[1755922979798,2.45737872,115720.0,115710.0,0.2088761]
[1755922981100,2.45737872,115720.0,115710.0,0.1593761]
[1755922982606,2.45737872,115720.0,115710.0,0.2088761]
[1755922985295,2.45737872,115720.0,115710.0,0.2777661]
[1755922985500,2.45737872,115720.0,115710.0,0.3460461]
[1755922985897,2.45737872,115720.0,115710.0,0.4073161]
[1755922986098,2.45737872,115720.0,115710.0,0.40731907]
[1755922986696,2.45737872,115720.0,115710.0,0.40731906]
[1755922989208,2.45737872,115720.0,115710.0,0.40731895]
[1755922989912,2.45737872,115720.0,115710.0,0.51609775]
[1755922990304,2.45737872,115720.0,115710.0,0.45482775]
[1755922990507,2.45737872,115720.0,115710.0,0.38593775]
[1755922990811,2.45737872,115720.0,115710.0,0.34604895]
[1755922992306,2.45737872,115720.0,115710.0,0.40731895]
[1755922995411,2.40320872,115720.0,115710.0,0.3460479]
[1755922995612,2.40320872,115720.0,115710.0,0.33323]
[1755922996914,2.40320872,115720.0,115710.0,0.34631739]
[1755922999318,2.35479872,115720.0,115710.0,0.29256]
[1755922999907,2.35479872,115720.0,115710.0,0.30564629]
[1755923000112,2.35479872,115720.0,115710.0,0.29256]
[1755923001021,2.35479872,115720.0,115710.0,0.30564628]
[1755923001418,2.35479872,115720.0,115710.0,0.30564629]
[1755923002119,1.98586471,115720.0,115710.0,0.30564629]
[1755923002318,1.98586471,115720.0,115710.0,0.3056458]
[1755923002924,1.53298471,115720.0,115710.0,0.3056458]
[1755923003721,1.60952471,115720.0,115710.0,0.3056458]
[1755923003922,1.60952471,115720.0,115710.0,0.5556458]
[1755923004821,1.0896605,115720.0,115710.0,1.01099902]
[1755923005022,1.52786451,115720.0,115710.0,1.01099902]
[1755923005324,1.52786451,115720.0,115710.0,1.50286501]
[1755923005520,1.1589305,115720.0,115710.0,1.87179902]
[1755923005718,0.88302,115720.0,115710.0,1.87179902]
[1755923005918,1.25195401,115720.0,115710.0,1.87179902]
[1755923006620,1.33840451,115720.0,115710.0,1.50286501]
[1755923006822,1.33840451,115720.0,115710.0,1.87179902]
[1755923007524,1.33840451,115720.0,115710.0,1.87176983]
[1755923007820,1.33840451,115720.0,115710.0,1.8717698]
[1755923008025,1.41214451,115720.0,115710.0,1.8717698]
[1755923009619,1.41214451,115720.0,115710.0,1.50283579]
[1755923009819,1.41214451,115720.0,115710.0,1.8717698]
[1755923010020,1.41214451,115720.0,115710.0,1.6217698]
[1755923010224,1.41214451,115720.0,115710.0,1.25283579]
[1755923010425,1.41214451,115720.0,115710.0,1.62176126]
[1755923012826,1.0432105,115720.0,115710.0,1.62176126]
[1755923013025,1.41214451,115720.0,115710.0,1.62176126]
[1755923014834,1.41214451,115720.0,115710.0,1.25282725]
[1755923015023,1.41214451,115720.0,115710.0,1.62176126]
[1755923016630,1.41214451,115720.0,115710.0,1.62175451]
[1755923017726,1.0432105,115720.0,115710.0,1.62175451]
[1755923018027,1.41214451,115720.0,115710.0,1.62175451]
[1755923021924,1.41214451,115720.0,115710.0,1.70821251]
[1755923022125,1.41214451,115720.0,115710.0,1.81685491]
[1755923023930,1.41214451,115720.0,115710.0,1.73039691]
[1755923025534,1.41214451,115720.0,115710.0,1.62206217]
[1755923026633,1.41214451,115720.0,115710.0,1.73070457]
[1755923027032,1.41214451,115720.0,115710.0,1.62206217]
[1755923027536,1.41214451,115720.0,115710.0,1.73070457]
[1755923028138,1.41214451,115720.0,115710.0,1.81716237]
[1755923028635,1.0432105,115720.0,115710.0,1.44822836]
[1755923028934,1.41214451,115720.0,115710.0,1.81716237]
[1755923029735,1.41214451,115720.0,115710.0,1.73070457]
[1755923032637,1.41214451,115720.0,115710.0,1.62206217]
[1755923033437,1.41214451,115720.0,115710.0,1.73073904]
[1755923034036,1.0432105,115720.0,115710.0,1.73073904]
[1755923034236,1.41214451,115720.0,115710.0,1.73073904]
[1755923034439,1.41214451,115720.0,115710.0,1.71739009]
[1755923034634,1.41214451,115720.0,115710.0,1.73066685]
[1755923035338,1.0432105,115720.0,115710.0,1.62198998]
[1755923035639,1.41214451,115720.0,115710.0,1.73075187]
[1755923036740,1.0432105,115720.0,115710.0,1.73075187]
[1755923037140,1.41214451,115720.0,115710.0,1.73075187]
[1755923038741,1.0432105,115720.0,115710.0,1.73075187]
[1755923038933,1.41214451,115720.0,115710.0,1.73075187]
[1755923040741,1.41214451,115720.0,115710.0,1.73065813]
[1755923041642,1.0432105,115720.0,115710.0,1.73065813]
[1755923041841,1.41214451,115720.0,115710.0,1.73065813]
[1755923042243,1.0432105,115720.0,115710.0,1.73065813]
[1755923042442,1.41214451,115720.0,115710.0,1.73065813]
[1755923042742,1.41214451,115720.0,115710.0,1.73065815]
[1755923043142,1.0432105,115720.0,115710.0,1.73065815]
[1755923043344,1.41214451,115720.0,115710.0,1.73065815]
[1755923044046,1.41214451,115720.0,115710.0,1.62189626]
[1755923045148,1.41214451,115720.0,115710.0,1.25296225]
[1755923045346,1.41214451,115720.0,115710.0,1.62189626]
[1755923048750,1.41214451,115720.0,115710.0,1.62189631]
[1755923049248,1.0432105,115720.0,115710.0,1.62189631]
[1755923049850,1.41214451,115720.0,115710.0,1.62189631]
[1755923051653,1.41214451,115720.0,115710.0,1.60871322]
[1755923051855,1.41214451,115720.0,115710.0,1.62189469]
[1755923053254,1.0432105,115720.0,115710.0,1.62189469]
[1755923053555,1.41214451,115720.0,115710.0,1.62189469]
[1755923054855,1.41214451,115720.0,115710.0,1.62189486]
[1755923055658,1.41214451,115720.0,115710.0,1.60871322]
[1755923055859,1.51693451,115720.0,115710.0,1.60871322]
[1755923056056,1.51693451,115720.0,115710.0,1.68640201]
[1755923058556,1.1480005,115720.0,115710.0,1.68640201]
[1755923058759,1.51693451,115720.0,115710.0,1.68640201]
[1755923059154,1.1480005,115720.0,115710.0,1.68640201]
[1755923059351,1.1919905,115720.0,115710.0,2.54277201]
[1755923059657,1.56092451,115720.0,115710.0,2.173838]
[1755923059857,1.56092451,115720.0,115710.0,2.54277201]
[1755923060655,1.56092451,115720.0,115710.0,2.62002262]
[1755923063259,1.56092451,115720.0,115710.0,1.82154262]
[1755923064264,1.56092451,115720.0,115710.0,1.90800062]
[1755923065859,1.1257405,115720.0,115710.0,1.90800062]
[1755923066061,1.1919905,115720.0,115710.0,1.90800062]
[1755923066262,1.1919905,115720.0,115710.0,1.75306122]
[1755923066755,0.3219305,115720.0,115710.0,1.75306122]
[1755923066960,0.3219305,115720.0,115710.0,2.23073815]
[1755923066961,0.2158505,115720.0,115710.0,2.23073815]
[1755923067462,0.1684705,115720.0,115710.0,2.23073815]
[1755923067760,0.1684705,115720.0,115710.0,2.12199523]
[1755923068463,0.1684705,115720.0,115710.0,1.38412721]
[1755923068670,0.08202,115720.0,115710.0,2.12199523]
[1755923068867,0.08202,115720.0,115710.0,2.37199523]
[1755923069866,0.08202,115720.0,115710.0,2.12199523]
[1755923070364,0.08202,115720.0,115710.0,2.13212801]
[1755923071365,0.01459942,115720.0,115710.0,2.13212801]
[1755923071566,0.10366866,115730.0,115720.0,0.2357105]
[1755923071766,0.17009866,115730.0,115720.0,2.00506729]
[1755923072370,0.17009866,115730.0,115720.0,2.20012968]
[1755923073070,0.17309866,115730.0,115720.0,2.0914865]
[1755923073368,0.17309866,115730.0,115720.0,2.5914865]
[1755923073764,0.17509866,115730.0,115720.0,2.70010551]
[1755923074270,0.17509866,115730.0,115720.0,2.5914865]
[1755923074468,0.02547866,115730.0,115720.0,2.5914865]
[1755923074868,1.51191751,115750.0,115740.0,0.38047]
[1755923075066,1.52477251,115750.0,115740.0,0.86812226]
[1755923075267,1.1558385,115750.0,115740.0,0.95455786]
[1755923075462,0.271165,115750.0,115740.0,1.40176961]
[1755923076075,0.271165,115750.0,115740.0,1.46985983]
[1755923076277,0.271165,115750.0,115740.0,1.46985859]
[1755923076574,0.271165,115750.0,115740.0,1.96985859]
[1755923076766,0.278165,115750.0,115740.0,1.96985859]
[1755923078270,0.278165,115750.0,115740.0,2.76801859]
[1755923078471,0.236335,115750.0,115740.0,2.76801859]
[1755923079079,0.140195,115750.0,115740.0,2.76801859]
[1755923079278,0.140195,115750.0,115740.0,2.76801777]
[1755923079483,0.073765,115750.0,115740.0,2.6594323]
[1755923079878,0.019855,115750.0,115740.0,3.02836631]
[1755923080078,0.007,115750.0,115740.0,3.02836631]
[1755923080277,0.9316643,115760.0,115750.0,0.2356884]
[1755923080481,0.9316643,115760.0,115750.0,1.28416293]
[1755923080979,1.0180883,115760.0,115750.0,1.37055975]
[1755923081178,1.053834,115760.0,115750.0,1.00162574]
[1755923081478,1.053834,115760.0,115750.0,1.37055975]
[1755923081678,1.057834,115760.0,115750.0,1.37055975]
[1755923081978,1.059834,115760.0,115750.0,1.87055975]
[1755923082178,1.07262687,115760.0,115750.0,1.87055947]
[1755923083679,1.07262687,115760.0,115750.0,1.79315967]
[1755923083879,0.98620287,115760.0,115750.0,1.90174514]
[1755923084068,1.05306287,115760.0,115750.0,1.90174514]
[1755923084274,1.13948377,115760.0,115750.0,1.79315967]
[1755923084979,1.13548377,115760.0,115750.0,1.79315967]
[1755923085179,1.13348377,115760.0,115750.0,1.79315967]
[1755923085779,1.13348377,115760.0,115750.0,1.80618859]
[1755923087582,1.13348377,115760.0,115750.0,1.43725458]
[1755923087975,1.50241778,115760.0,115750.0,1.80618859]
[1755923088276,1.50241778,115760.0,115750.0,1.78302923]
[1755923088482,1.50241778,115760.0,115750.0,1.80618567]
[1755923089285,1.13348377,115760.0,115750.0,1.80618567]
[1755923090286,0.89410287,115760.0,115750.0,1.80618567]
[1755923090580,0.93837287,115760.0,115750.0,1.43725166]
[1755923090786,1.04706287,115760.0,115750.0,1.43725166]
[1755923091086,1.04706287,115760.0,115750.0,1.80618567]
[1755923091287,1.04706287,115760.0,115750.0,1.80718567]
[1755923091583,1.13348377,115760.0,115750.0,1.80718403]
[1755923092687,1.13348377,115760.0,115750.0,1.80718467]
[1755923094283,1.09165377,115760.0,115750.0,1.90564006]
[1755923094495,1.09165377,115760.0,115750.0,1.91577014]
[1755923094795,1.13348377,115760.0,115750.0,1.91577014]
[1755923097389,1.13348377,115760.0,115750.0,1.90564006]
[1755923097592,1.13348377,115760.0,115750.0,1.91577792]
[1755923099284,1.04706287,115760.0,115750.0,1.91577792]
[1755923100089,1.13348377,115760.0,115750.0,1.91577792]
[1755923100789,1.50241778,115760.0,115750.0,1.46041551]
[1755923100990,1.50241778,115760.0,115750.0,1.82934952]
[1755923101192,1.50241778,115760.0,115750.0,1.91577782]
[1755923104983,1.13348377,115760.0,115750.0,1.91577782]
[1755923105188,1.41599688,115760.0,115750.0,1.91577782]
[1755923105487,1.41599688,115760.0,115750.0,1.8926146]
[1755923105686,1.41599688,115760.0,115750.0,1.91570754]
[1755923106097,1.41599688,115760.0,115750.0,1.91570779]
[1755923106396,1.41599688,115760.0,115750.0,1.80712232]
[1755923106591,1.50241788,115760.0,115750.0,1.80712232]
[1755923106794,1.50241788,115760.0,115750.0,1.91564611]
[1755923107594,1.50241788,115760.0,115750.0,1.80712232]
[1755923108399,1.50241788,115760.0,115750.0,1.91565931]
[1755923108697,1.13348387,115760.0,115750.0,1.91565931]
[1755923108890,1.50241788,115760.0,115750.0,1.91565931]
[1755923109092,1.50241788,115760.0,115750.0,1.9156636]